bitfinex/quotes_BTCUSD_20220211
["timestamp","ask_amount","ask_price","bid_price","bid_amount"]
[1644566116039,0.21563509,43464.0,43460.0,0.05754671]
[1644566116239,0.00046568,43464.0,43461.0,0.00490446]
[1644566116440,0.25446509,43463.0,43461.0,0.00490446]
[1644566117383,0.25446509,43463.0,43458.0,0.17264865]
[1644566117985,0.25493077,43463.0,43458.0,0.17264865]
[1644566119185,0.38937713,43460.0,43459.0,0.321562]
[1644566120544,0.38937713,43460.0,43459.0,0.421562]
[1644566120742,0.00046568,43462.0,43459.0,0.421562]
[1644566120943,0.00046568,43462.0,43460.0,0.070561]
[1644566121141,0.00046568,43462.0,43460.0,0.12811005]
[1644566121542,0.00046568,43462.0,43461.0,0.0463]
[1644566121741,0.00027852,43467.0,43461.0,0.367845]
[1644566121943,0.00093136,43466.0,43461.0,0.482938]
[1644566122142,0.00093136,43466.0,43463.0,0.013009]
[1644566122342,0.00093136,43466.0,43463.0,0.07055544]
[1644566122542,0.00093136,43466.0,43464.0,0.28801995]
[1644566122743,0.00093136,43466.0,43463.0,0.05754644]
[1644566123442,0.00093136,43466.0,43462.0,0.057547]
[1644566124896,0.24520276,43465.0,43462.0,0.057547]
[1644566125196,0.00093136,43465.0,43462.0,0.057547]
[1644566125601,0.24613412,43465.0,43462.0,0.057547]
[1644566125998,0.00093136,43465.0,43462.0,0.057547]
[1644566127100,0.24613412,43465.0,43462.0,0.057547]
[1644566127504,0.24613412,43465.0,43461.0,0.00562618]
[1644566127703,0.00093136,43465.0,43461.0,0.00562618]
[1644566128530,0.00093136,43465.0,43461.0,0.00490446]
[1644566129131,0.00093136,43465.0,43461.0,0.12000446]
[1644566129333,0.32961993,43463.0,43461.0,0.00490446]
[1644566129532,0.37961993,43463.0,43460.0,0.00490446]
[1644566130132,0.38055129,43463.0,43460.0,0.00490446]
[1644566130332,0.32276724,43462.0,43460.0,0.00490446]
[1644566130730,0.32276724,43462.0,43459.0,0.20490446]
[1644566131132,0.3236986,43462.0,43459.0,0.20562586]
[1644566131331,0.32260365,43462.0,43459.0,0.20562586]
[1644566132181,0.32260365,43462.0,43459.0,0.20490446]
[1644566132583,0.32260365,43462.0,43459.0,0.06390809]
[1644566132783,0.37260365,43462.0,43459.0,0.05900363]
[1644566132983,0.37260365,43462.0,43459.0,0.11656036]
[1644566133885,0.32260365,43462.0,43459.0,0.00144663]
[1644566135083,0.31260365,43462.0,43459.0,0.00144663]
[1644566136635,0.60697667,43462.0,43459.0,0.00144663]
[1644566137437,0.29437302,43460.0,43459.0,0.00144663]
[1644566137843,0.29448772,43460.0,43459.0,0.00144663]
[1644566138435,0.01848188,43461.0,43459.0,0.00144663]
[1644566138938,0.9,43460.0,43448.0,0.1]
[1644566139199,0.9,43460.0,43446.0,0.001]
[1644566139200,0.24547194,43452.0,43446.0,0.001]
[1644566139397,0.24547194,43447.0,43446.0,0.001]
[1644566139697,0.56703094,43447.0,43446.0,0.001]
[1644566140099,0.24547194,43447.0,43446.0,0.001]
[1644566140499,0.6161007,43447.0,43446.0,0.001]
[1644566140697,0.6111007,43447.0,43446.0,0.001]
[1644566140896,0.321559,43447.0,43446.0,0.001]
[1644566141296,0.9612075,43448.0,43446.0,0.001]
[1644566141499,0.6716658,43448.0,43446.0,0.001]
[1644566141695,0.321559,43447.0,43446.0,0.001]
[1644566142299,0.96490562,43447.0,43446.0,0.001]
[1644566142496,0.66490562,43447.0,43446.0,0.001]
[1644566142696,0.66490562,43447.0,43446.0,0.00046136]
[1644566143341,0.00450255,43448.0,43446.0,0.00046136]
[1644566143537,0.00450255,43448.0,43444.0,0.03753755]
[1644566143738,0.00450255,43448.0,43445.0,0.301186]
[1644566143938,0.00450255,43448.0,43446.0,0.0463]
[1644566144142,0.1132,43455.0,43447.0,0.347471]
[1644566144143,0.24557941,43452.0,43447.0,0.347471]
[1644566144340,0.24557941,43452.0,43449.0,0.057566]
[1644566144538,0.24557941,43452.0,43449.0,0.103866]
[1644566144738,0.24557941,43451.0,43449.0,0.103866]
[1644566144940,0.24557941,43450.0,43449.0,0.103866]
[1644566145139,0.24557941,43450.0,43449.0,0.347452]
[1644566145539,0.24557941,43450.0,43449.0,0.0463]
[1644566145739,0.24561218,43450.0,43449.0,0.0463]
[1644566145940,0.49122299,43450.0,43449.0,0.347453]
[1644566146141,0.24561081,43450.0,43449.0,0.347453]
[1644566147089,0.32877962,43453.0,43449.0,0.0463]
[1644566147988,0.65935245,43454.0,43449.0,0.0463]
[1644566148289,0.00072138,43453.0,43449.0,0.0463]
[1644566148789,0.29477538,43451.0,43449.0,0.0463]
[1644566150452,0.31600583,43454.0,43450.0,0.416291]
[1644566150645,0.11632076,43453.0,43450.0,0.165145]
[1644566150845,0.00072138,43453.0,43450.0,0.165145]
[1644566151044,0.11560374,43452.0,43450.0,0.165145]
[1644566151246,0.00072138,43453.0,43450.0,0.165145]
[1644566151645,0.00047478,43453.0,43451.0,0.115144]
[1644566151847,0.00047478,43453.0,43451.0,0.105144]
[1644566152347,0.00047478,43453.0,43452.0,0.301129]
[1644566152550,0.00047478,43453.0,43452.0,0.351129]
[1644566152746,0.00505471,43454.0,43452.0,0.16571759]
[1644566152953,0.11409934,43453.0,43452.0,0.16571759]
[1644566153146,0.00505471,43454.0,43452.0,0.22328435]
[1644566153346,0.00505471,43454.0,43453.0,0.165709]
[1644566153550,0.1497701,43454.0,43453.0,0.165709]
[1644566154188,0.1497701,43454.0,43453.0,0.49214696]
[1644566154189,0.00505471,43454.0,43453.0,0.49214696]
[1644566154592,0.00505471,43454.0,43453.0,0.49447565]
[1644566154893,0.39286505,43464.0,43458.0,0.05756]
[1644566155088,0.39286505,43464.0,43458.0,0.02365471]
[1644566155089,0.33503963,43461.0,43458.0,0.02365471]
[1644566155287,0.14469241,43460.0,43458.0,0.07365471]
[1644566155488,0.14469241,43459.0,43458.0,0.07365471]
[1644566155789,0.14469241,43459.0,43458.0,0.05]
[1644566156188,0.14469241,43459.0,43458.0,0.165122]
[1644566156387,0.14469241,43459.0,43458.0,0.115122]
[1644566157589,0.37178171,43460.0,43458.0,0.115122]
[1644566157839,0.37178171,43460.0,43459.0,0.057564]
[1644566163786,0.37178171,43460.0,43459.0,0.059564]
[1644566165192,0.37178171,43460.0,43457.0,0.16298321]
[1644566165443,0.42934871,43460.0,43457.0,0.16298321]
[1644566165643,0.321579,43459.0,43457.0,0.16298321]
[1644566165844,0.321579,43459.0,43458.0,0.057567]
[1644566166042,0.321579,43459.0,43458.0,0.058567]
[1644566166343,0.75092771,43460.0,43458.0,0.001]
[1644566166944,0.75573841,43460.0,43458.0,0.001]
[1644566167144,1.14878151,43460.0,43458.0,0.001]
[1644566167344,0.22263391,43459.0,43458.0,0.001]
[1644566167944,0.54421291,43459.0,43458.0,0.001]
[1644566168144,0.22263391,43459.0,43458.0,0.001]
[1644566168946,0.22249905,43459.0,43458.0,0.001]
[1644566171590,1.15423477,43460.0,43458.0,0.001]
[1644566171789,0.42934871,43460.0,43458.0,0.001]
[1644566172289,0.75092771,43460.0,43458.0,0.001]
[1644566172690,0.10568499,43459.0,43457.0,0.00485482]
[1644566172943,0.379151,43458.0,43457.0,0.00485482]
[1644566173139,0.48483599,43458.0,43457.0,0.00485482]
[1644566173440,0.41815846,43458.0,43457.0,0.00485482]
[1644566174839,0.10568499,43458.0,43456.0,0.1307305]
[1644566175141,0.00487172,43459.0,43457.0,0.05]
[1644566175339,0.09455902,43458.0,43457.0,0.05]
[1644566175939,0.08955902,43458.0,43457.0,0.05]
[1644566176140,0.08955902,43458.0,43457.0,0.107558]
[1644566177687,0.08455902,43458.0,43457.0,0.057558]
[1644566178091,0.08455902,43458.0,43457.0,0.223246]
[1644566178587,0.08455902,43458.0,43457.0,0.223146]
[1644566178787,0.08455902,43458.0,43457.0,0.273146]
[1644566179188,0.08455902,43458.0,43457.0,0.107458]
[1644566179988,0.08455902,43458.0,43457.0,0.273146]
[1644566181236,0.08455902,43458.0,43457.0,0.268146]
[1644566181438,0.08455902,43458.0,43457.0,0.102458]
[1644566181637,0.08455902,43458.0,43457.0,0.268146]
[1644566182738,0.08455902,43458.0,43457.0,0.218146]
[1644566182939,0.08455902,43458.0,43457.0,0.052458]
[1644566183143,0.00454358,43459.0,43458.0,0.05756]
[1644566185091,0.00526742,43460.0,43458.0,0.110118]
[1644566185291,0.00526742,43460.0,43459.0,0.16568]
[1644566185493,0.00526742,43460.0,43459.0,0.21198]
[1644566187089,0.0006842,43462.0,43459.0,0.21198]
[1644566187090,0.00525546,43461.0,43459.0,0.21198]
[1644566187938,0.00525546,43461.0,43459.0,0.0463]
[1644566188339,0.00525546,43461.0,43460.0,0.165673]
[1644566188534,0.00525546,43461.0,43459.0,0.0463]
[1644566188934,0.69027,43463.0,43459.0,0.0463]
[1644566189135,0.69027,43463.0,43459.0,0.2189794]
[1644566189136,0.0050477,43462.0,43459.0,0.2189794]
[1644566189734,0.0050477,43462.0,43459.0,0.1726794]
[1644566190737,0.0626107,43462.0,43459.0,0.2226794]
[1644566191136,0.057563,43462.0,43459.0,0.2226794]
[1644566191883,0.057563,43462.0,43460.0,0.11512382]
[1644566192083,0.057563,43462.0,43460.0,0.07850084]
[1644566192784,0.0766288,43461.0,43459.0,0.21019142]
[1644566193385,0.0766288,43461.0,43459.0,0.16019142]
[1644566193786,0.0766288,43461.0,43460.0,0.11512382]
[1644566194789,0.0716288,43461.0,43460.0,0.11512382]
[1644566194987,1.08798224,43463.0,43460.0,0.17268482]
[1644566195188,0.00520354,43462.0,43461.0,0.11512125]
[1644566197141,0.69535709,43463.0,43461.0,0.28079025]
[1644566197342,0.69535709,43463.0,43462.0,0.215663]
[1644566197542,0.69535709,43463.0,43462.0,0.05]
[1644566199188,0.69027,43463.0,43462.0,0.05]
[1644566199788,0.69027,43463.0,43461.0,0.120463]
[1644566200190,0.69027,43463.0,43462.0,0.009214]
[1644566200391,0.69027,43463.0,43462.0,0.055514]
[1644566200590,0.69027,43463.0,43462.0,0.0463]
[1644566200789,0.69027,43463.0,43462.0,0.0963]
[1644566203236,1.08123553,43463.0,43462.0,0.0963]
[1644566203636,1.08123553,43463.0,43462.0,0.0463]
[1644566204037,1.08123553,43463.0,43462.0,0.009214]
[1644566204437,0.69027,43463.0,43461.0,0.12518515]
[1644566204639,0.69164628,43463.0,43461.0,0.12518515]
[1644566204837,0.69164628,43463.0,43461.0,0.12976217]
[1644566205036,0.69164628,43463.0,43461.0,0.13428021]
[1644566205236,0.69164628,43463.0,43461.0,0.11963929]
[1644566205437,0.69164628,43463.0,43461.0,0.11512125]
[1644566205937,0.69164628,43463.0,43462.0,0.05]
[1644566206136,0.66604628,43463.0,43462.0,0.05]
[1644566207802,0.66604628,43463.0,43461.0,0.11962502]
[1644566208903,0.66604628,43463.0,43462.0,0.05]
[1644566209703,0.66604628,43463.0,43461.0,0.11512125]
[1644566210004,0.10781753,43462.0,43461.0,0.11512125]
[1644566212845,0.10781753,43462.0,43461.0,0.00051646]
[1644566213444,0.10781753,43462.0,43461.0,0.05807671]
[1644566215587,0.10771222,43462.0,43461.0,0.05807671]
[1644566216189,0.10771222,43462.0,43461.0,0.03514616]
[1644566220039,0.38696668,43462.0,43461.0,0.03514616]
[1644566221687,0.38696668,43462.0,43460.0,0.06217485]
[1644566221688,1.221579,43461.0,43455.0,0.00072266]
[1644566221987,1.221579,43461.0,43450.0,0.369]
[1644566221988,0.73100647,43459.0,43450.0,0.369]
[1644566222191,0.3930431,43457.0,43450.0,0.369]
[1644566222388,0.321579,43456.0,43450.0,0.42658]
[1644566222588,0.87543637,43453.0,43451.0,0.05758]
[1644566222788,0.321579,43452.0,43447.0,0.230316]
[1644566222987,0.34404489,43448.0,43447.0,0.230316]
[1644566223187,0.33924527,43448.0,43447.0,0.396054]
[1644566223390,0.55385737,43453.0,43447.0,0.396056]
[1644566223586,0.55385737,43453.0,43449.0,0.009216]
[1644566223787,0.115157,43451.0,43446.0,0.172734]
[1644566223989,0.40210976,43451.0,43445.0,0.00064947]
[1644566224189,0.115157,43451.0,43445.0,0.00064947]
[1644566224791,0.115157,43451.0,43447.0,0.057579]
[1644566224992,0.33022895,43448.0,43447.0,0.057579]
[1644566226038,0.33022895,43448.0,43447.0,0.115158]
[1644566226241,0.33022895,43448.0,43444.0,0.115161]
[1644566226242,0.93580055,43448.0,43444.0,0.115161]
[1644566226442,0.93580055,43448.0,43445.0,0.00064947]
[1644566226443,0.379164,43447.0,43445.0,0.00064947]
[1644566226638,0.4300044,43447.0,43445.0,0.00064947]
[1644566227238,0.4300044,43447.0,43444.0,0.066804]
[1644566227239,0.1084254,43447.0,43444.0,0.066804]
[1644566227446,0.1084254,43447.0,43444.0,0.124391]
[1644566227739,0.1084254,43447.0,43444.0,0.12508432]
[1644566227940,0.1084254,43447.0,43444.0,0.17508432]
[1644566228541,0.1084254,43447.0,43445.0,0.16575]
[1644566228741,0.1084254,43447.0,43446.0,0.165746]
[1644566228941,0.1084254,43447.0,43446.0,0.165745]
[1644566230191,0.1084254,43447.0,43445.0,0.06456256]
[1644566230192,0.4300044,43447.0,43444.0,0.17508432]
[1644566230392,0.321579,43446.0,43444.0,0.17508432]
[1644566230891,0.321579,43446.0,43444.0,0.174391]
[1644566231493,0.1084254,43447.0,43444.0,0.174391]
[1644566231693,0.321579,43446.0,43444.0,0.174391]
[1644566231895,0.1084254,43447.0,43444.0,0.174391]
[1644566232095,0.0508404,43447.0,43444.0,0.174391]
[1644566232297,0.0508404,43447.0,43445.0,0.16575]
[1644566235548,0.00461385,43448.0,43446.0,0.40110666]
[1644566235747,0.00461385,43448.0,43447.0,0.215741]
[1644566236592,0.00461385,43448.0,43447.0,0.265741]
[1644566237991,0.1,43456.0,43447.0,0.265741]
[1644566238193,0.1,43456.0,43449.0,0.05756882]
[1644566238393,0.28133408,43455.0,43451.0,0.05757]
[1644566238594,0.095,43456.0,43451.0,0.05757]
[1644566239394,0.095,43456.0,43454.0,0.057573]
[1644566239395,0.321579,43455.0,43454.0,0.057573]
[1644566239593,0.095,43456.0,43454.0,0.057573]
[1644566239994,0.321579,43455.0,43454.0,0.057573]
[1644566240446,0.32130198,43455.0,43454.0,0.057573]
[1644566241642,0.321578,43455.0,43454.0,0.057573]
[1644566242041,0.321578,43455.0,43454.0,0.115143]
[1644566242445,0.15718385,43456.0,43454.0,0.115143]
[1644566242643,0.321578,43455.0,43454.0,0.115143]
[1644566242845,0.321578,43455.0,43454.0,0.165143]
[1644566243048,0.44566912,43456.0,43454.0,0.165143]
[1644566243246,0.321578,43455.0,43454.0,0.165143]
[1644566243445,0.74389369,43456.0,43454.0,0.165143]
[1644566243847,0.321578,43455.0,43454.0,0.165143]
[1644566244493,0.74389369,43456.0,43454.0,0.161943]
[1644566244694,0.15718385,43456.0,43454.0,0.161943]
[1644566245095,0.1617977,43456.0,43454.0,0.161943]
[1644566245294,0.15718385,43456.0,43454.0,0.161943]
[1644566246196,0.15718385,43456.0,43455.0,0.165977]
[1644566246197,0.09961385,43456.0,43455.0,0.165977]
[1644566246598,0.09961385,43456.0,43455.0,0.215977]
[1644566246599,0.00461385,43456.0,43455.0,0.215977]
[1644566247006,0.00461385,43456.0,43455.0,0.57521816]
[1644566247195,0.00461385,43457.0,43455.0,0.52521816]
[1644566247397,0.00461385,43457.0,43456.0,0.1614129]
[1644566247695,0.00461385,43457.0,43456.0,0.3273839]
[1644566248167,0.00461385,43457.0,43456.0,0.2698279]
[1644566248762,0.00461385,43457.0,43456.0,0.3198279]
[1644566248963,0.00461385,43457.0,43456.0,0.59623476]
[1644566249167,1.385e-05,43457.0,43456.0,0.74623476]
[1644566249362,0.00461385,43458.0,43456.0,0.4698279]
[1644566249567,0.00461385,43458.0,43457.0,0.165966]
[1644566249764,0.00461385,43458.0,43457.0,0.45722739]
[1644566250165,0.65844486,43463.0,43459.0,0.05755212]
[1644566250366,0.65844486,43463.0,43460.0,0.212249]
[1644566250565,0.65844486,43463.0,43460.0,0.262249]
[1644566250764,0.65844486,43463.0,43461.0,0.165945]
[1644566251167,0.65844486,43463.0,43462.0,0.56584003]
[1644566251465,0.65844486,43463.0,43462.0,0.165939]
[1644566251690,0.65844486,43463.0,43461.0,0.11511158]
[1644566252492,0.65844486,43463.0,43462.0,0.165939]
[1644566252692,0.65844486,43463.0,43461.0,0.11511158]
[1644566253093,0.65844486,43463.0,43462.0,0.11511064]
[1644566253293,0.65844486,43463.0,43462.0,0.16511064]
[1644566254095,0.65844486,43463.0,43462.0,0.28104964]
[1644566254298,0.98002286,43463.0,43460.0,0.057555]
[1644566254498,0.98002286,43463.0,43458.0,0.057574]
[1644566254499,0.321578,43462.0,43458.0,0.057574]
[1644566254696,0.321578,43462.0,43449.0,0.18037649]
[1644566254697,0.65706858,43461.0,43449.0,0.18037649]
[1644566254896,0.6175623,43460.0,43449.0,0.1228]
[1644566255098,0.6175623,43460.0,43450.0,0.28470854]
[1644566255099,0.65706858,43459.0,43450.0,0.28470854]
[1644566255346,0.379151,43458.0,43452.0,0.08292159]
[1644566255542,1.03621958,43458.0,43456.0,0.057574]
[1644566255941,1.03621958,43458.0,43457.0,0.06218885]
[1644566259289,1.03621958,43458.0,43457.0,0.057575]
[1644566260389,1.33049011,43458.0,43457.0,0.057575]
[1644566261401,1.33049011,43458.0,43455.0,0.172718]
[1644566261402,1.42679011,43458.0,43455.0,0.00068447]
[1644566261592,0.0046,43457.0,43455.0,0.00068447]
[1644566261794,1.03623558,43456.0,43455.0,0.00068447]
[1644566262395,0.31316716,43448.0,43447.0,0.115166]
[1644566262842,0.31316716,43448.0,43447.0,0.331183]
[1644566263236,0.31316716,43448.0,43447.0,0.165166]
[1644566263738,0.63474516,43448.0,43447.0,0.165166]
[1644566264136,0.157584,43449.0,43447.0,0.165166]
[1644566264335,0.97864658,43448.0,43447.0,0.165166]
[1644566264536,0.65706858,43448.0,43447.0,0.165166]
[1644566264736,0.97864658,43448.0,43447.0,0.165166]
[1644566265136,1.00539834,43448.0,43447.0,0.165166]
[1644566265539,1.32697634,43448.0,43447.0,0.165166]
[1644566265937,1.32697634,43448.0,43447.0,0.16542319]
[1644566267595,0.9,43447.0,43445.0,0.00068451]
[1644566267794,0.379168,43446.0,43445.0,0.00094778]
[1644566268095,1.03623658,43446.0,43445.0,0.00094778]
[1644566268493,1.03623658,43446.0,43442.0,0.057594]
[1644566268695,0.321578,43444.0,43442.0,0.057594]
[1644566269293,0.37917,43444.0,43442.0,0.057594]
[1644566269695,0.37417,43444.0,43442.0,0.057594]
[1644566270345,0.37417,43444.0,43442.0,0.115185]
[1644566270641,0.28295828,43443.0,43442.0,0.165185]
[1644566270838,0.60453628,43443.0,43442.0,0.165185]
[1644566271041,0.32159,43443.0,43442.0,0.165185]
[1644566271241,0.32159,43443.0,43442.0,0.16544828]
[1644566271840,0.057592,43444.0,43442.0,0.16544828]
[1644566272141,0.32159,43443.0,43442.0,0.16544828]
[1644566272441,0.057592,43444.0,43442.0,0.165185]
[1644566272639,0.32159,43443.0,43442.0,0.165185]
[1644566272840,0.057592,43444.0,43442.0,0.165185]
[1644566273042,0.32159,43443.0,43442.0,0.165185]
[1644566273241,0.28361973,43443.0,43442.0,0.165185]
[1644566273741,0.057592,43444.0,43442.0,0.16544828]
[1644566273742,0.379182,43444.0,43442.0,0.16544828]
[1644566274597,0.441377,43445.0,43443.0,0.05]
[1644566274796,0.65706858,43444.0,43443.0,0.05026328]
[1644566275295,0.65706858,43444.0,43443.0,0.17129928]
[1644566275796,0.71465558,43444.0,43443.0,0.22888283]
[1644566276195,0.71465558,43444.0,43443.0,0.17129928]
[1644566276796,1.03624558,43444.0,43443.0,0.00026328]
[1644566276996,1.03624558,43444.0,43442.0,0.47669189]
[1644566277196,1.03624558,43444.0,43442.0,0.52669189]
[1644566277596,0.71465558,43444.0,43442.0,0.52669189]
[1644566277836,1.03624558,43444.0,43442.0,0.52669189]
[1644566278040,0.32159,43443.0,43442.0,0.52669189]
[1644566278239,0.71465558,43444.0,43442.0,0.47669189]
[1644566278437,1.03624558,43444.0,43442.0,0.47669189]
[1644566278637,0.71465558,43444.0,43442.0,0.52669189]
[1644566278837,0.71465558,43444.0,43442.0,0.47669189]
[1644566279240,0.71465558,43444.0,43442.0,0.52669189]
[1644566279836,0.71465558,43444.0,43442.0,0.47669189]
[1644566280439,0.71465558,43444.0,43442.0,0.11544828]
[1644566280638,0.71465558,43444.0,43442.0,0.05785728]
[1644566280639,1.03624558,43444.0,43442.0,0.05785728]
[1644566281037,1.03624558,43444.0,43442.0,0.00026328]
[1644566281241,0.32159,43443.0,43441.0,0.05823767]
[1644566281694,0.53990002,43443.0,43441.0,0.057593]
[1644566281997,0.53990002,43443.0,43441.0,0.052593]
[1644566282193,0.53990002,43443.0,43441.0,0.05285628]
[1644566283194,0.60356478,43443.0,43441.0,0.05285628]
[1644566283895,0.32159,43443.0,43441.0,0.05285628]
[1644566285097,0.32159,43443.0,43441.0,0.04785628]
[1644566285745,0.057592,43443.0,43441.0,0.04785628]
[1644566286245,0.057592,43443.0,43441.0,0.09772258]
[1644566286645,0.379182,43443.0,43441.0,0.04772258]
[1644566286846,0.057592,43443.0,43441.0,0.04772258]
[1644566287246,0.379182,43443.0,43441.0,0.04772258]
[1644566287448,0.6035333,43442.0,43441.0,0.04772258]
[1644566287647,0.2819433,43442.0,43441.0,0.04772258]
[1644566287845,0.6035333,43442.0,43441.0,0.00026328]
[1644566288046,0.6035333,43442.0,43440.0,0.05824069]
[1644566288047,0.7187233,43442.0,43440.0,0.05824069]
[1644566288248,0.32159,43441.0,43440.0,0.05824069]
[1644566288647,0.32131296,43441.0,43440.0,0.05824069]
[1644566288849,0.32131296,43441.0,43440.0,0.057596]
[1644566289289,0.32131296,43441.0,43440.0,0.05785928]
[1644566290691,0.60905974,43441.0,43440.0,0.05785928]
[1644566290991,0.60905974,43441.0,43440.0,0.05285928]
[1644566291993,0.32131296,43441.0,43440.0,0.05285928]
[1644566292848,0.32131296,43441.0,43440.0,0.10285928]
[1644566293246,0.321592,43441.0,43440.0,0.10285928]
[1644566295044,0.321592,43441.0,43440.0,0.05285928]
[1644566297895,0.60101677,43441.0,43440.0,0.05285928]
[1644566298894,0.60101677,43441.0,43440.0,0.10285928]
[1644566300564,0.321592,43441.0,43440.0,0.10285928]
[1644566303169,0.61297462,43441.0,43440.0,0.10285928]
[1644566304197,0.61297462,43441.0,43440.0,0.10074928]
[1644566304403,0.61297462,43441.0,43434.0,0.172777]
[1644566304404,0.7,43439.0,43434.0,0.172777]
[1644566304600,0.057606,43437.0,43434.0,0.172777]
[1644566304800,0.371592,43436.0,43428.0,0.00026437]
[1644566304999,0.321592,43434.0,43430.0,0.057607]
[1644566305198,0.65706858,43433.0,43430.0,0.037607]
[1644566305404,0.65596473,43432.0,43430.0,0.037607]
[1644566305600,0.321592,43431.0,43430.0,0.037607]
[1644566307500,0.60434916,43431.0,43430.0,0.037607]
[1644566307950,0.6040721,43431.0,43430.0,0.037607]
[1644566309047,0.32131494,43431.0,43430.0,0.037607]
[1644566309247,0.31631494,43431.0,43430.0,0.037607]
[1644566311900,0.31631494,43431.0,43428.0,0.00069198]
[1644566312100,0.31631494,43431.0,43428.0,0.00095635]
[1644566312101,0.057615,43430.0,43428.0,0.00095635]
[1644566312403,0.56284378,43429.0,43428.0,0.00095635]
[1644566312604,0.56284378,43429.0,43428.0,0.00069198]
[1644566312801,1.21991236,43429.0,43427.0,0.00026437]
[1644566313001,1.27752763,43429.0,43427.0,0.00026437]
[1644566313205,0.057616,43428.0,43426.0,0.00069199]
[1644566313402,0.321604,43427.0,43426.0,0.00069199]
[1644566313607,0.321604,43427.0,43426.0,0.05857236]
[1644566313803,0.37922,43428.0,43426.0,0.05830799]
[1644566314103,0.37922,43428.0,43426.0,0.057616]
[1644566314503,0.43683597,43428.0,43425.0,0.00026437]
[1644566314703,0.43683597,43428.0,43425.0,0.057617]
[1644566314704,0.379222,43427.0,43425.0,0.057617]
[1644566314903,0.379222,43427.0,43425.0,0.05788137]
[1644566315352,0.35609705,43426.0,43425.0,0.00026437]
[1644566315548,0.67770105,43426.0,43424.0,0.00094043]
[1644566315751,0.379225,43425.0,43424.0,0.00067606]
[1644566315949,0.379225,43425.0,43424.0,0.00094043]
[1644566316549,0.379225,43425.0,43424.0,0.00026437]
[1644566316749,0.379225,43425.0,43423.0,0.00178409]
[1644566316950,0.379225,43425.0,43424.0,0.00026437]
[1644566317150,0.43684614,43425.0,43423.0,0.05967046]
[1644566317551,0.43684614,43425.0,43423.0,0.00204846]
[1644566317751,0.65706858,43424.0,43423.0,0.00204846]
[1644566318053,0.97867258,43424.0,43423.0,0.00178409]
[1644566318451,0.97867258,43424.0,43423.0,0.00204846]
[1644566319112,1.12867258,43424.0,43423.0,0.00204846]
[1644566319312,1.42867258,43424.0,43423.0,0.00178409]
[1644566319512,1.12867258,43424.0,43423.0,0.00178409]
[1644566319916,1.4708025,43424.0,43423.0,0.00178409]
[1644566320512,1.4708025,43424.0,43415.0,0.00297336]
[1644566320513,0.057634,43421.0,43415.0,0.00297336]
[1644566320718,1.35742372,43420.0,43417.0,0.00026437]
[1644566320916,0.321604,43419.0,43415.0,0.00297336]
[1644566321112,1.18211972,43420.0,43415.0,0.00297336]
[1644566321113,0.321604,43417.0,43415.0,0.00297336]
[1644566321414,0.321604,43417.0,43415.0,0.00026437]
[1644566321415,1.58718854,43416.0,43415.0,0.00026437]
[1644566321612,1.94873197,43416.0,43410.0,0.11552837]
[1644566321813,0.86975065,43415.0,43411.0,0.00026437]
[1644566322013,1.52681923,43415.0,43411.0,0.00026437]
[1644566322856,1.52681923,43415.0,43414.0,0.547632]
[1644566323355,1.52681923,43415.0,43414.0,0.63616395]
[1644566323356,0.97867258,43415.0,43414.0,0.63616395]
[1644566323556,0.97867258,43415.0,43414.0,0.63642832]
[1644566323953,0.97867258,43415.0,43414.0,0.54789637]
[1644566324154,0.65706858,43415.0,43414.0,0.54789637]
[1644566324353,0.65706858,43415.0,43414.0,0.72464137]
[1644566325154,0.65706858,43415.0,43414.0,0.80960654]
[1644566325556,0.65706858,43415.0,43414.0,1.10960654]
[1644566325758,0.0046,43416.0,43414.0,1.20590654]
[1644566325956,0.4813,43432.0,43415.0,0.47674]
[1644566326166,0.4813,43432.0,43427.0,0.12518033]
[1644566326358,0.29182441,43429.0,43427.0,0.18278333]
[1644566326595,0.29182441,43429.0,43427.0,0.057606]
[1644566326794,0.29182441,43429.0,43427.0,0.05787037]
[1644566327197,0.42169616,43432.0,43427.0,0.05787037]
[1644566327395,0.42169616,43432.0,43428.0,0.057603]
[1644566327595,0.321604,43431.0,43428.0,0.05786737]
[1644566327995,0.00503853,43430.0,43428.0,0.05786737]
[1644566328395,0.38424653,43430.0,43428.0,0.11547137]
[1644566328797,0.379208,43430.0,43428.0,0.11547137]
[1644566331953,0.00463375,43431.0,43430.0,0.176659]
[1644566332152,0.00463375,43431.0,43430.0,0.54748806]
[1644566332351,0.00463375,43431.0,43430.0,0.54775243]
[1644566332751,0.00463375,43431.0,43430.0,0.52775243]
[1644566333554,0.00463375,43431.0,43430.0,0.15692337]
[1644566334105,0.00531759,43432.0,43430.0,0.15692337]
[1644566335804,0.057601,43435.0,43430.0,0.15692337]
[1644566336004,0.00502625,43433.0,43431.0,0.156652]
[1644566336205,0.00502625,43433.0,43431.0,0.11546537]
[1644566336410,0.00502625,43433.0,43431.0,0.00026437]
[1644566336411,0.28930547,43432.0,43431.0,0.00026437]
[1644566336605,0.3216,43431.0,43430.0,0.00026437]
[1644566336805,0.32704956,43431.0,43430.0,0.00026437]
[1644566337005,0.64864956,43431.0,43430.0,0.00026437]
[1644566337205,0.3216,43430.0,43429.0,0.00571484]
[1644566337604,0.3216,43430.0,43429.0,0.01028418]
[1644566338251,0.379213,43430.0,43429.0,0.01028418]
[1644566338651,0.379213,43430.0,43429.0,0.00026437]
[1644566338856,0.379213,43430.0,43428.0,0.00026437]
[1644566339055,0.479213,43430.0,43427.0,0.057614]
[1644566339665,0.479213,43430.0,43427.0,0.06269969]
[1644566339856,0.479213,43430.0,43427.0,0.00508569]
[1644566340654,0.479213,43430.0,43420.0,0.00026437]
[1644566340854,0.479213,43430.0,43423.0,0.057622]
[1644566341054,0.69082,43429.0,43423.0,0.057622]
[1644566341255,0.3216,43428.0,43423.0,0.057622]
[1644566341603,0.3216,43424.0,43423.0,0.057622]
[1644566341803,0.3216,43424.0,43423.0,0.17312537]
[1644566343502,0.44501623,43425.0,43423.0,0.17312537]
[1644566343703,0.3216,43424.0,43423.0,0.17312537]
[1644566344503,0.06273562,43425.0,43423.0,0.17312537]
[1644566345003,0.00511562,43425.0,43424.0,0.156689]
[1644566345202,0.00511562,43425.0,43424.0,0.15695337]
[1644566345853,0.31571267,43426.0,43424.0,0.15695337]
[1644566346053,0.748434,43425.0,43424.0,0.05787737]
[1644566346252,1.070034,43425.0,43424.0,0.05787737]
[1644566346851,1.070034,43425.0,43424.0,0.00026437]